bitfinex-derivatives/quotes_BNBF0:USTF0_20251219
["timestamp","ask_amount","ask_price","bid_price","bid_amount"]
[1766147782649,1.16034665,848.79,847.6,0.87668275]
[1766147782948,1.16034665,848.78,847.6,0.87922424]
[1766147783148,1.16034665,848.77,847.6,0.87922424]
[1766147783348,1.16034665,848.76,847.62,0.87922424]
[1766147783549,1.16034665,848.75,847.62,0.87922424]
[1766147783748,1.16034665,848.74,847.62,0.87922424]
[1766147783948,0.20509315,848.82,847.62,0.87922424]
[1766147784252,1.16031382,848.81,847.62,0.87922424]
[1766147784452,1.16031382,848.8,847.64,0.87922424]
[1766147784749,0.20509315,848.82,847.64,0.87922424]
[1766147784750,1.16031382,848.79,847.64,0.87922424]
[1766147784952,1.16031382,848.78,847.64,0.87922424]
[1766147785148,1.16031382,848.77,847.64,0.87922424]
[1766147785450,1.16031382,848.76,847.66,0.87922424]
[1766147785648,1.16031382,848.75,847.66,0.87922424]
[1766147785848,1.16031382,848.74,847.66,0.87922424]
[1766147786047,1.16031382,848.73,847.66,0.87922424]
[1766147786252,1.16031382,848.72,847.66,0.87922424]
[1766147786450,1.16031382,848.71,847.67,0.87922424]
[1766147786655,1.16031382,848.7,847.67,0.87922424]
[1766147786848,1.16031382,848.69,847.67,0.87922424]
[1766147787154,1.16031382,848.68,847.67,0.87922424]
[1766147787353,1.16031382,848.67,847.69,0.87922424]
[1766147787550,1.16812716,848.91,847.69,0.87922424]
[1766147787749,1.16228822,848.9,847.69,0.87922424]
[1766147787953,1.16228822,848.89,847.69,0.87922424]
[1766147788150,1.16228822,848.88,847.69,0.87922424]
[1766147788352,1.16228822,848.87,847.69,0.87922424]
[1766147788551,1.16228822,848.86,847.71,0.87922424]
[1766147788755,1.16228822,848.85,847.71,0.87922424]
[1766147788957,1.16228822,848.84,847.71,0.87922424]
[1766147789151,1.16228822,848.83,847.71,0.87922424]
[1766147789351,1.16228822,848.82,847.71,0.87922424]
[1766147789553,1.16228822,848.81,847.71,0.87922424]
[1766147789852,1.16812716,848.89,847.71,0.87922424]
[1766147789853,1.16228822,848.8,847.71,0.87922424]
[1766147790154,1.16812716,848.89,847.71,0.87922424]
[1766147790155,1.16228822,848.79,847.71,0.87922424]
[1766147790356,1.16228822,848.78,847.71,0.87922424]
[1766147790557,0.20513727,848.53,847.71,0.87922424]
[1766147791256,0.20513727,848.53,847.72,0.87922424]
[1766147793361,0.20513727,848.53,847.73,0.87922424]
[1766147794561,0.20513727,848.53,847.74,0.87922424]
[1766147795363,0.20513727,848.53,847.7,0.87922424]
[1766147795559,0.20513727,848.53,846.94,0.20513727]
[1766147795560,0.20513727,848.53,847.68,0.87922424]
[1766147796256,0.20513727,848.53,847.66,0.87922424]
[1766147796663,1.16355384,848.52,847.64,0.88228688]
[1766147796860,1.16355384,848.51,847.56,0.88228688]
[1766147797063,1.16355384,848.5,847.56,0.88228688]
[1766147797261,1.16355384,848.49,847.55,0.88228688]
[1766147797464,1.16355384,848.48,847.55,0.88228688]
[1766147797665,1.16355384,848.47,847.55,0.88228688]
[1766147797866,1.16355384,848.46,847.55,0.88228688]
[1766147798066,1.16355384,848.45,847.55,0.88228688]
[1766147798264,1.16355384,848.44,847.55,0.88228688]
[1766147798471,0.20513727,848.53,847.55,0.88228688]
[1766147798661,1.16326851,848.52,847.55,0.88228688]
[1766147798865,1.16326851,848.51,847.55,0.88228688]
[1766147799064,1.16326851,848.5,847.55,0.88228688]
[1766147799362,1.16326851,848.49,847.55,0.88228688]
[1766147799566,1.16326851,848.48,847.55,0.88228688]
[1766147799862,1.16326851,848.47,847.47,0.88228688]
[1766147800167,1.16326851,848.46,847.43,0.88228688]
[1766147800362,1.16326851,848.45,847.42,0.88228688]
[1766147800563,1.16326851,848.44,847.36,0.88228688]
[1766147800764,1.16326851,848.43,847.36,0.88228688]
[1766147801061,1.16812716,848.51,847.36,0.88228688]
[1766147801062,1.16326851,848.42,847.36,0.88228688]
[1766147801264,1.16326851,848.41,847.36,0.88228688]
[1766147801568,1.16326851,848.4,847.34,0.88228688]
[1766147801864,1.16326851,848.39,847.34,0.88228688]
[1766147802169,1.16326851,848.38,847.34,0.88228688]
[1766147802369,1.16326851,848.37,847.33,0.88228688]
[1766147802567,0.20513727,848.53,847.33,0.88228688]
[1766147802568,1.16326851,848.36,847.33,0.88228688]
[1766147802769,1.16326851,848.35,847.33,0.88228688]
[1766147802965,1.16326851,848.34,847.33,0.88228688]
[1766147803168,1.16326851,848.33,847.33,0.88228688]
[1766147803468,1.16326851,848.32,847.28,0.88228688]
[1766147803672,1.16326851,848.31,847.28,0.88228688]
[1766147803870,1.16326851,848.3,847.28,0.88228688]
[1766147804065,1.16326851,848.29,847.28,0.88228688]
[1766147804264,1.37326443,848.53,847.26,0.88228688]
[1766147804464,1.16103384,848.52,847.26,0.88228688]
[1766147804769,1.16103384,848.51,847.25,0.88228688]
[1766147804965,1.16812716,848.49,847.22,0.88228688]
[1766147805164,1.16103384,848.48,847.22,0.88228688]
[1766147805367,1.16103384,848.47,847.21,0.88228688]
[1766147805570,1.16103384,848.46,847.21,0.88228688]
[1766147805766,1.16103384,848.45,847.21,0.88228688]
[1766147805967,1.16103384,848.44,847.21,0.88228688]
[1766147806272,2.329161,848.43,847.1,0.88228688]
[1766147806472,1.16812716,848.37,847.03,0.88228688]
[1766147806672,1.16103384,848.36,847.03,0.88228688]
[1766147806874,1.16103384,848.35,847.03,0.88228688]
[1766147807069,1.16103384,848.34,847.03,0.88228688]
[1766147807275,1.16103384,848.33,847.0,0.88228688]
[1766147807470,1.16103384,848.32,847.0,0.88228688]
[1766147807670,1.16103384,848.31,847.0,0.88228688]
[1766147807870,1.16103384,848.3,847.0,0.88228688]
[1766147808070,1.16103384,848.29,847.0,0.88228688]
[1766147808370,1.16103384,848.28,846.98,0.88228688]
[1766147808574,1.16103384,848.27,846.98,0.88228688]
[1766147808771,1.16103384,848.26,846.98,0.88228688]
[1766147808974,1.16103384,848.25,846.98,0.88228688]
[1766147809169,1.16103384,848.24,846.96,0.88228688]
[1766147809378,1.16103384,848.23,846.96,0.88228688]
[1766147809579,1.16103384,848.22,846.96,0.88228688]
[1766147809776,1.16103384,848.21,846.96,0.88228688]
[1766147810079,1.16103384,848.2,846.96,0.88228688]
[1766147810280,1.16812716,848.44,846.95,0.88228688]
[1766147810476,1.15862208,848.43,846.94,0.88228688]
[1766147810679,1.15862208,848.42,846.94,0.88228688]
[1766147810876,1.15862208,848.41,846.94,0.88228688]
[1766147811175,1.15862208,848.4,846.94,0.88228688]
[1766147811376,1.15862208,848.39,846.93,0.88228688]
[1766147811581,1.15862208,848.38,846.92,0.88228688]
[1766147811880,1.15862208,848.37,846.92,0.88228688]
[1766147812177,1.15862208,848.36,846.92,0.88228688]
[1766147812479,1.15862208,848.35,846.91,0.88228688]
[1766147812779,1.15862208,848.34,846.91,0.88228688]
[1766147812977,1.15862208,848.33,846.91,0.88228688]
[1766147813182,1.15862208,848.32,846.9,0.88228688]
[1766147813478,1.15862208,848.31,846.89,0.88228688]
[1766147813677,1.15862208,848.3,846.89,0.88228688]
[1766147813979,1.15862208,848.29,846.89,0.88228688]
[1766147814281,1.15862208,848.28,846.88,0.88228688]
[1766147814481,1.15862208,848.27,846.88,0.88228688]
[1766147814782,1.15862208,848.26,846.88,0.88228688]
[1766147814978,1.16812716,848.5,846.88,0.88228688]
[1766147815281,1.1570306,848.49,846.87,0.88228688]
[1766147815581,1.1570306,848.48,846.86,0.88228688]
[1766147815781,1.1570306,848.47,846.86,0.88228688]
[1766147815980,1.1570306,848.46,846.86,0.88228688]
[1766147816283,1.1570306,848.45,846.86,0.88228688]
[1766147816484,1.1570306,848.44,846.85,0.88228688]
[1766147816779,1.1570306,848.43,846.85,0.88228688]
[1766147816979,1.1570306,848.42,846.85,0.88228688]
[1766147817181,1.1570306,848.41,846.85,0.88228688]
[1766147817482,1.1570306,848.4,846.85,0.88228688]
[1766147817680,1.1570306,848.39,846.85,0.88228688]
[1766147817881,1.1570306,848.38,846.85,0.88228688]
[1766147818080,1.1570306,848.37,846.85,0.88228688]
[1766147818284,1.1570306,848.36,846.84,0.88228688]
[1766147818580,1.1570306,848.35,846.84,0.88228688]
[1766147818780,1.1570306,848.34,846.84,0.88228688]
[1766147818979,1.1570306,848.33,846.84,0.88228688]
[1766147819183,1.1570306,848.32,846.84,0.88228688]
[1766147819380,1.1570306,848.31,846.84,0.88228688]
[1766147819577,1.1570306,848.3,846.84,0.88228688]
[1766147819778,1.1570306,848.29,846.84,0.88228688]
[1766147819979,1.37326443,848.53,846.84,0.88228688]
[1766147820180,1.15602187,848.52,846.84,0.88228688]
[1766147820383,1.15602187,848.51,846.84,0.88228688]
[1766147820683,1.15602187,848.5,846.84,0.88228688]
[1766147820883,1.15602187,848.49,846.84,0.88228688]
[1766147821081,1.15602187,848.48,846.84,0.88228688]
[1766147821280,1.15602187,848.47,846.84,0.88228688]
[1766147821480,1.15602187,848.46,846.83,1.08754878]
[1766147821683,1.15602187,848.45,846.83,1.08754878]
[1766147821883,1.15602187,848.44,846.83,1.08754878]
[1766147822180,1.15602187,848.43,846.83,1.08754878]
[1766147822384,1.15602187,848.42,846.83,1.08754878]
[1766147822584,1.15602187,848.41,846.83,1.08754878]
[1766147822784,1.15602187,848.4,846.83,1.08754878]
[1766147822983,1.15602187,848.39,846.83,1.08754878]
[1766147823184,1.15602187,848.38,846.83,1.08754878]
[1766147823380,1.15602187,848.37,846.83,1.08754878]
[1766147823582,1.15602187,848.36,846.83,1.08754878]
[1766147823780,1.15602187,848.35,846.83,1.08754878]
[1766147823982,1.15602187,848.34,846.83,1.08754878]
[1766147824181,1.15602187,848.33,846.83,1.08754878]
[1766147824382,1.15602187,848.32,846.83,1.08754878]
[1766147824583,1.15602187,848.31,846.83,1.08754878]
[1766147824780,1.15602187,848.3,846.83,1.08754878]
[1766147824981,0.20513727,848.53,846.83,1.08754878]
[1766147825182,1.15592814,848.52,846.83,1.08190421]
[1766147825387,1.15592814,848.51,846.83,0.2052619]
[1766147825585,1.15592814,848.5,846.83,0.2052619]
[1766147825884,1.15592814,848.49,846.83,0.2052619]
[1766147826187,1.15592814,848.48,846.83,0.2052619]
[1766147826391,1.15592814,848.47,846.83,1.08190421]
[1766147826683,1.15592814,848.46,846.83,0.2052619]
[1766147826887,1.15592814,848.45,846.83,0.2052619]
[1766147827183,1.15592814,848.44,846.83,0.2052619]
[1766147827382,1.15592814,848.43,846.83,0.2052619]
[1766147827581,1.15592814,848.42,846.83,0.2052619]
[1766147827787,1.15592814,848.41,846.83,0.2052619]
[1766147827986,1.15592814,848.4,846.89,0.87664231]
[1766147828184,1.15592814,848.39,846.9,0.87664231]
[1766147828389,1.15592814,848.38,846.9,0.87664231]
[1766147828587,1.15592814,848.37,846.9,0.87664231]
[1766147828791,0.20513727,848.53,846.9,0.87664231]
[1766147829087,1.15604264,848.52,846.9,0.87664231]
[1766147829289,1.15604264,848.51,846.9,0.87664231]
[1766147829589,1.15604264,848.5,846.9,0.87664231]
[1766147829789,1.15604264,848.49,846.9,0.87664231]
[1766147829989,1.15604264,848.48,846.9,0.87664231]
[1766147830190,1.15604264,848.47,846.95,0.87664231]
[1766147830390,1.15604264,848.46,846.95,0.87664231]
[1766147830686,1.15604264,848.45,846.95,0.87664231]
[1766147830885,1.15604264,848.44,846.95,0.87664231]
[1766147831089,1.15604264,848.43,846.95,0.87664231]
[1766147831289,1.15604264,848.42,846.96,0.87664231]
[1766147831489,1.15604264,848.41,846.96,0.87664231]
[1766147831788,0.20513727,848.53,846.96,0.87664231]
[1766147831986,1.15642366,848.52,846.96,0.87664231]
[1766147832288,1.15642366,848.51,846.96,0.87664231]
[1766147832486,1.15642366,848.5,846.96,0.87664231]
[1766147832689,1.15642366,848.49,846.96,0.87664231]
[1766147832888,1.15642366,848.48,846.96,0.87664231]
[1766147833090,1.15642366,848.47,846.96,0.87664231]
[1766147833288,1.15642366,848.46,846.97,0.87664231]
[1766147833491,1.15642366,848.45,846.97,0.87664231]
[1766147833688,1.15642366,848.44,846.97,0.87664231]
[1766147833893,1.15642366,848.43,846.97,0.87664231]
[1766147834095,1.15642366,848.42,846.97,0.87664231]
[1766147834293,1.15642366,848.41,846.98,0.87664231]
[1766147834493,1.15642366,848.4,846.98,0.87664231]
[1766147834688,0.20513727,848.53,846.98,0.87664231]
[1766147834891,1.15688071,848.52,846.98,0.87664231]
[1766147835190,1.15688071,848.51,846.98,0.87664231]
[1766147835490,1.15688071,848.5,846.98,0.87664231]
[1766147835688,1.15688071,848.49,846.98,0.87664231]
[1766147835890,0.20513727,848.53,846.98,0.87664231]
[1766147836194,1.15704149,848.52,846.98,0.87664231]
[1766147836495,1.15704149,848.51,846.99,0.87664231]
[1766147836693,1.15704149,848.5,846.99,0.87664231]
[1766147836894,1.15704149,848.49,846.99,0.87664231]
[1766147837094,1.15704149,848.48,846.99,0.87664231]
[1766147837396,1.15704149,848.47,847.0,0.87664231]
[1766147837590,1.15704149,848.46,847.0,0.87664231]
[1766147837895,1.15704149,848.45,847.0,0.87664231]
[1766147838192,1.15704149,848.44,847.0,0.87664231]
[1766147838395,1.15704149,848.43,847.0,0.87664231]
[1766147838592,1.15704149,848.42,847.0,0.87664231]
[1766147838796,1.15704149,848.41,847.0,0.87664231]
[1766147838996,1.15704149,848.4,847.0,0.87664231]
[1766147839293,1.15704149,848.39,847.0,0.87664231]
[1766147839592,1.15704149,848.38,847.01,0.87664231]
[1766147839798,1.15704149,848.37,847.01,0.87664231]
[1766147840098,0.20513727,848.53,847.01,0.87664231]
[1766147840292,1.15806008,848.52,847.01,0.87664231]
[1766147840496,1.15806008,848.51,847.01,0.87664231]
[1766147840694,1.15806008,848.5,847.01,0.87664231]
[1766147840898,1.15806008,848.49,847.01,0.87664231]
[1766147841098,1.15806008,848.48,847.01,0.87664231]
[1766147841299,1.15806008,848.47,847.02,0.87664231]
[1766147841495,1.15806008,848.46,847.02,0.87664231]
[1766147841800,1.15806008,848.45,847.02,0.87664231]
[1766147842400,0.20513727,848.53,846.83,0.2052619]
[1766147842401,0.20513727,848.53,847.03,0.87664231]
[1766147842600,1.15855135,848.52,847.03,0.87664231]
[1766147842896,1.15855135,848.51,847.03,0.87664231]
[1766147843101,1.15855135,848.5,847.03,0.87664231]
[1766147843298,1.15855135,848.49,847.04,0.87664231]
[1766147843500,1.15855135,848.48,847.04,0.87664231]
[1766147843701,1.15855135,848.47,847.04,0.87664231]
[1766147843902,1.15855135,848.46,847.04,0.87664231]
[1766147844099,1.15855135,848.45,847.04,0.87664231]
[1766147844301,1.15855135,848.44,847.05,0.87664231]
[1766147844502,1.15855135,848.43,847.05,0.87664231]
[1766147844699,1.15855135,848.42,847.05,0.87664231]
[1766147844904,1.15855135,848.41,847.05,0.87664231]
[1766147845103,1.15855135,848.4,847.05,0.87664231]
[1766147845403,1.15855135,848.39,847.06,0.87664231]
[1766147845603,1.15855135,848.38,847.06,0.87664231]
[1766147845803,1.15855135,848.37,847.06,0.87664231]
[1766147845998,1.15855135,848.36,847.06,0.87664231]
[1766147846200,1.15855135,848.35,847.06,0.87664231]
[1766147846500,1.15855135,848.34,847.07,0.87664231]
[1766147846705,1.15855135,848.33,847.07,0.87664231]
[1766147846902,1.15855135,848.32,847.07,0.87664231]
[1766147847101,0.20513727,848.53,847.07,0.87664231]
[1766147847405,1.15980907,848.52,847.08,0.87664231]
[1766147847701,1.15980907,848.51,847.08,0.87664231]
[1766147848007,1.15980907,848.5,847.08,0.87664231]
[1766147848206,1.15980907,848.49,847.08,0.87664231]
[1766147848403,0.20513727,848.53,846.83,0.2052619]
[1766147848404,1.15980907,848.48,847.09,0.87664231]
[1766147848702,1.15980907,848.47,847.09,0.87664231]
[1766147848902,1.15980907,848.46,847.09,0.87664231]
[1766147849104,1.15980907,848.45,847.09,0.87664231]
[1766147849403,1.15980907,848.44,847.1,0.87664231]
[1766147849602,1.15980907,848.43,847.1,0.87664231]
[1766147849806,1.15980907,848.42,847.1,0.87664231]
[1766147850001,1.15980907,848.41,847.1,0.87664231]
[1766147850305,1.15980907,848.4,847.11,0.87664231]
[1766147850503,1.15980907,848.39,847.11,0.87664231]
[1766147850701,1.15980907,848.38,847.11,0.87664231]
[1766147850905,1.15980907,848.37,847.11,0.87664231]
[1766147851202,1.15980907,848.36,847.11,0.87664231]
[1766147851503,1.15980907,848.35,847.13,0.87664231]
[1766147851701,1.15980907,848.34,847.13,0.87664231]
[1766147852003,1.15980907,848.33,847.13,0.87664231]
[1766147852307,1.15980907,848.32,847.15,0.87664231]
[1766147852506,1.15980907,848.31,847.15,0.87664231]
[1766147852703,1.15980907,848.3,847.15,0.87664231]
[1766147852908,1.15980907,848.29,847.15,0.87664231]
[1766147853107,1.15980907,848.28,847.15,0.87664231]
[1766147853303,1.15980907,848.27,847.16,0.87664231]
[1766147853603,1.15980907,848.26,847.16,0.87664231]
[1766147853907,1.15980907,848.25,847.16,0.87664231]
[1766147854205,1.15980907,848.24,847.16,0.87664231]
[1766147854404,1.15980907,848.23,847.18,0.87664231]
[1766147854707,1.15980907,848.22,847.18,0.87664231]
[1766147854907,1.15980907,848.21,847.18,0.87664231]
[1766147855208,1.16812716,848.44,847.18,0.87664231]
[1766147855405,1.16812716,848.41,847.21,0.87664231]
[1766147855606,1.16521965,848.4,847.21,0.87664231]
[1766147855811,1.16521965,848.39,847.21,0.87664231]
[1766147856007,1.16521965,848.38,847.21,0.87664231]
[1766147856203,1.16521965,848.37,847.23,0.87664231]
[1766147856402,1.16812716,848.39,847.23,0.87664231]
[1766147856403,1.16521965,848.36,847.23,0.87664231]
[1766147856603,1.16521965,848.35,847.23,0.87664231]
[1766147856906,1.16521965,848.34,847.23,0.87664231]
[1766147857103,1.16521965,848.33,847.23,0.87664231]
[1766147857304,1.16521965,848.32,847.24,0.87664231]
[1766147857508,1.16521965,848.31,847.24,0.87664231]
[1766147857810,1.16521965,848.3,847.24,0.87664231]
[1766147858010,1.16521965,848.29,847.24,0.87664231]
[1766147858205,1.16521965,848.28,847.24,0.87664231]
[1766147858410,1.16521965,848.27,847.26,0.87664231]
[1766147858610,1.16521965,848.26,847.26,0.87664231]
[1766147858911,1.16521965,848.25,847.26,0.87664231]
[1766147859107,1.16521965,848.24,847.26,0.87664231]
[1766147859312,1.16521965,848.23,847.27,0.87664231]
[1766147859511,1.16521965,848.22,847.27,0.87664231]
[1766147859711,1.16521965,848.21,847.27,0.87664231]
[1766147859911,1.16521965,848.2,847.27,0.87664231]
[1766147860112,1.16521965,848.19,847.27,0.87664231]
[1766147860412,1.16521965,848.18,847.28,0.87664231]
[1766147860608,1.16521965,848.17,847.28,0.87664231]
[1766147860812,1.16521965,848.16,847.28,0.87664231]
[1766147861013,1.16521965,848.15,847.28,0.87664231]
[1766147861212,1.16521965,848.14,847.29,0.87664231]
[1766147861508,1.16521965,848.13,847.29,0.87664231]
[1766147861712,1.16521965,848.12,847.29,0.87664231]
[1766147861910,1.16521965,848.11,847.29,0.87664231]
[1766147862114,1.16521965,848.1,847.29,0.87664231]
[1766147862315,1.16521965,848.09,847.29,0.87664231]
[1766147862610,1.16812716,848.33,847.29,0.87664231]
[1766147862810,1.16748596,848.32,847.29,0.87664231]
[1766147863015,1.16748596,848.31,847.29,0.87664231]
[1766147863212,1.16748596,848.3,847.29,0.87664231]
[1766147863515,1.16748596,848.29,847.3,0.87664231]
[1766147863816,1.16748596,848.28,847.3,0.87664231]
[1766147864016,1.16748596,848.27,847.3,0.87664231]
[1766147864212,1.16748596,848.26,847.3,0.87664231]
[1766147864416,1.16748596,848.25,847.3,0.87664231]
[1766147864615,1.16748596,848.24,847.3,0.87664231]
[1766147864815,1.16748596,848.23,847.3,0.87664231]
[1766147865110,1.16748596,848.22,847.3,0.87664231]
[1766147865312,1.16748596,848.21,847.3,0.87664231]
[1766147865615,1.16748596,848.2,847.3,0.87664231]
[1766147865814,1.16748596,848.19,847.3,0.87664231]
[1766147866013,1.16748596,848.18,847.3,0.87664231]
[1766147866214,1.16748596,848.17,847.3,0.87664231]
[1766147866418,1.16748596,848.16,847.3,0.87664231]
[1766147866714,1.16748596,848.15,847.3,0.87664231]
[1766147866917,1.16748596,848.14,847.3,0.87664231]
[1766147867117,1.16748596,848.13,847.3,0.87664231]
[1766147867314,1.16748596,848.12,847.3,0.87664231]
[1766147867617,1.16748596,848.11,847.3,0.87664231]
[1766147867814,1.16748596,848.1,847.3,0.87664231]
[1766147868113,1.16748596,848.09,847.3,0.87664231]
[1766147868320,1.16748596,848.08,847.3,0.87664231]
[1766147868514,1.16812716,848.32,847.3,0.87664231]
[1766147868714,1.16713111,848.31,847.3,0.87664231]
[1766147868914,1.16713111,848.3,847.3,0.87664231]
[1766147869113,1.16713111,848.29,847.3,0.87664231]
[1766147869419,1.16713111,848.28,847.3,0.87664231]
[1766147869717,1.16713111,848.27,847.3,0.87664231]
[1766147869914,1.16713111,848.26,847.3,0.87664231]
[1766147870219,1.16713111,848.25,847.3,0.87664231]
[1766147870415,1.16713111,848.24,847.3,0.87664231]
[1766147870620,1.16713111,848.23,847.3,0.87664231]
[1766147870820,1.16713111,848.22,847.3,0.87664231]
[1766147871021,1.16713111,848.21,847.3,0.87664231]
[1766147871219,1.16713111,848.2,847.3,0.87664231]
[1766147871521,1.16713111,848.19,847.31,0.87664231]
[1766147871721,1.16713111,848.18,847.31,0.87664231]
[1766147871920,1.16713111,848.17,847.31,0.87664231]
[1766147872118,1.16713111,848.16,847.31,0.87664231]
[1766147872319,1.16713111,848.15,847.31,0.87664231]
[1766147872618,1.16713111,848.14,847.31,0.87664231]
[1766147872821,1.16713111,848.13,847.31,0.87664231]
[1766147873020,1.16713111,848.12,847.31,0.87664231]
[1766147873323,1.16713111,848.11,847.31,0.87664231]
[1766147873618,1.16713111,848.1,847.31,0.87664231]
[1766147873819,1.16713111,848.09,847.31,0.87664231]
[1766147874020,1.16713111,848.08,847.31,0.87664231]
[1766147874218,1.16713111,848.07,847.31,0.87664231]
[1766147874419,1.16812716,848.31,847.31,0.87664231]
[1766147874623,1.16740513,848.3,847.31,0.87664231]
[1766147874824,1.16740513,848.29,847.31,0.87664231]
[1766147875018,1.16740513,848.28,847.31,0.87664231]
[1766147875219,1.16740513,848.27,847.31,0.87664231]
[1766147875423,1.16740513,848.26,847.3,0.87664231]
[1766147875619,1.16740513,848.25,847.3,0.87664231]
[1766147875821,1.16740513,848.24,847.3,0.87664231]
[1766147876024,1.16740513,848.23,847.3,0.87664231]
[1766147876224,1.16740513,848.22,847.3,0.87664231]
[1766147876525,1.16751685,848.21,847.3,0.87664231]
[1766147876824,1.16751685,848.2,847.3,0.87664231]
[1766147877025,1.16751685,848.19,847.3,0.87664231]
[1766147877226,1.16751685,848.18,847.3,0.87664231]
[1766147877426,1.16751685,848.17,847.31,0.87664231]
[1766147877727,1.16751685,848.16,847.31,0.87664231]
[1766147877925,1.16751685,848.15,847.31,0.87664231]
[1766147878124,1.16751685,848.14,847.31,0.87664231]
[1766147878328,1.16751685,848.13,847.31,0.87664231]
[1766147878528,1.16751685,848.12,847.31,0.87664231]
[1766147878825,1.16751685,848.11,847.31,0.87664231]
[1766147879125,1.16751685,848.1,847.31,0.87664231]
[1766147879332,1.16751685,848.09,847.31,0.87664231]
[1766147879532,1.16751685,848.08,847.31,0.87664231]
[1766147879727,1.16751685,848.07,847.31,0.87664231]
[1766147879927,1.16751685,848.06,847.31,0.87664231]
[1766147880127,1.16751685,848.05,847.31,0.87664231]
[1766147880329,1.16751685,848.04,847.31,0.87664231]
[1766147880531,1.16812716,848.28,847.31,0.87664231]
[1766147880730,1.16774279,848.27,847.31,0.87664231]
[1766147880934,1.16774279,848.26,847.31,0.87664231]
[1766147881131,1.16774279,848.25,847.31,0.87664231]
[1766147881335,1.16774279,848.24,847.32,0.87664231]
[1766147881536,1.16774279,848.23,847.32,0.87664231]
[1766147881735,1.16774279,848.22,847.32,0.87664231]
[1766147881933,1.16774279,848.21,847.32,0.87664231]
[1766147882139,1.16774279,848.2,847.32,0.87664231]
[1766147882339,1.16774279,848.19,847.32,0.87664231]
[1766147882540,1.16774279,848.18,847.32,0.87664231]
[1766147882836,1.16774279,848.17,847.32,0.87664231]
[1766147883134,1.16774279,848.16,847.32,0.87664231]
[1766147883339,1.16774279,848.15,847.33,0.87664231]
[1766147883536,1.75077792,848.43,847.33,0.87664231]
[1766147883537,1.16774279,848.14,847.33,0.87664231]
[1766147883738,1.16774279,848.13,847.37,0.87664231]
[1766147883939,1.16774279,848.12,847.37,0.87664231]
[1766147884138,1.16774279,848.11,847.37,0.87664231]
[1766147884442,1.16774279,848.1,847.38,0.87664231]
[1766147884637,1.16774279,848.09,847.38,0.87664231]
[1766147884837,1.16774279,848.08,847.38,0.87664231]
[1766147885142,1.16774279,848.07,847.38,0.87664231]
[1766147885341,1.16812716,848.31,847.38,0.87664231]
[1766147885540,1.16844009,848.3,847.38,0.87664231]
[1766147885745,1.16844009,848.29,847.38,0.87664231]
[1766147885943,1.16844009,848.28,847.38,0.87664231]
[1766147886139,1.16844009,848.27,847.38,0.87664231]
[1766147886344,1.16844009,848.26,847.39,0.87664231]
[1766147886543,1.16844009,848.25,847.39,0.87664231]
[1766147886744,1.16844009,848.24,847.39,0.87664231]
[1766147886945,1.16844009,848.23,847.39,0.87664231]
[1766147887247,1.16844009,848.22,847.4,0.87664231]
[1766147887445,1.16844009,848.21,847.4,0.87664231]
[1766147887642,1.16844009,848.2,847.4,0.87664231]
[1766147887841,1.16844009,848.19,847.4,0.87664231]
[1766147888044,1.16844009,848.18,847.4,0.87664231]
[1766147888340,1.16844009,848.17,847.4,0.87664231]
[1766147888646,1.16844009,848.16,847.4,0.88501212]
[1766147888844,1.16844009,848.15,847.4,0.88501212]
[1766147889047,1.16844009,848.14,847.4,0.88501212]
[1766147889247,1.16844009,848.13,847.4,0.88501212]
[1766147889443,1.16844009,848.12,847.4,0.88501212]
[1766147889648,1.16844009,848.11,847.4,0.88501212]
[1766147889845,1.16844009,848.1,847.4,0.88501212]
[1766147890045,1.16844009,848.09,847.4,0.88501212]
[1766147890250,1.16844009,848.08,847.4,0.88501212]
[1766147890545,1.16812716,848.33,847.44,0.88501212]
[1766147890749,1.16902501,848.32,847.5,0.88501212]
[1766147890947,1.16902501,848.31,847.5,0.88501212]
[1766147891145,1.16902501,848.3,847.49,0.88501212]
[1766147891348,1.16902501,848.29,847.49,0.88501212]
[1766147891547,1.16902501,848.28,847.49,0.88501212]
[1766147891750,1.16902501,848.27,847.49,0.88501212]
[1766147892049,0.20513727,848.53,847.48,0.88501212]
[1766147892050,1.16902501,848.26,847.48,0.88501212]
[1766147892250,1.16902501,848.25,847.48,0.88501212]
[1766147892550,1.16902501,848.24,847.48,0.88501212]
[1766147892848,1.16902501,848.23,847.48,0.88501212]
[1766147893046,1.16902501,848.22,847.48,0.88501212]
[1766147893249,1.16902501,848.21,847.47,0.88501212]
[1766147893449,1.16902501,848.2,847.47,0.88501212]
[1766147893648,1.16902501,848.19,847.47,0.88501212]
[1766147893846,1.16902501,848.18,847.47,0.88501212]
[1766147894146,1.16902501,848.18,847.32,1.1655277]
[1766147894147,1.16812716,848.44,847.48,0.88501212]
[1766147894345,1.16837952,848.43,847.48,0.88501212]
[1766147894550,1.16837952,848.42,847.48,0.88501212]
[1766147894750,1.16837952,848.41,847.48,0.88501212]
[1766147895046,1.16837952,848.4,847.49,0.88501212]
[1766147895249,1.16837952,848.39,847.48,0.88501212]
[1766147895450,1.16837952,848.38,847.48,0.88501212]
[1766147895751,1.16837952,848.37,847.52,0.88501212]
[1766147895952,1.16837952,848.36,847.52,0.88501212]
[1766147896149,1.16837952,848.35,847.51,0.88501212]
[1766147896454,1.16837952,848.34,847.57,0.88501212]
[1766147896654,0.20513727,848.53,847.57,0.88501212]